[Event "Karel Janecek Open 2025"]
[Site "Prague"]
[Date "2025.02.27"]
[Round "1.1"]
[White "Pechac, Jergus"]
[Black "Durana, Jonas"]
[Result "1-0"]
[Annotator "TA"]
[ECO "B90"]
[WhiteElo "2603"]
[BlackElo "2006"]
[PlyCount "65"]
[EventDate "2025.02.21"]
[EventType "swiss"]
[EventCountry "CZE"]
[SourceTitle "playchess.com"]
[Source "ChessBase"]
[SourceQuality "1"]
[TimeControl "40/5400+30:1800+30"]

{[%evp 11,65,23,20,2,3,-9,-16,-11,-4,-17,-33,-2,-21,-32,-11,-19,0,-78,54,51,47,41,101,70,172,172,164,176,142,104,268,156,180,178,282,248,237,77,433,326,317,283,318,316,312,330,318,312,315,317,310,272,342,337,339,238]} 1. e4 {[%emt 0:00:34]} c5 {[%emt 0:00:03]} 2. Nf3 {[%emt 0:00:12]} d6 {[%emt 0:00:04]} 3. d4 {[%emt 0:00:11]} cxd4 {[%emt 0:00:04]} 4. Nxd4 {[%emt 0:00:06]} Nf6 {[%emt 0:00:04]} 5. Nc3 {[%emt 0:00:06]} a6 {[%emt 0:00:04]} 6. h3 {[%emt 0:00:07]} e5 {[%emt 0:00:08]} 7. Nf3 {[%emt 0:00:11] Recently 7.Nb3 got a lot of attention. B90: Sicilian Najdorf: Unusual White 6th moves, 6 Be3 Ng4 and 6 Be3 e5.} Be7 {[%emt 0:01:19]} 8. g4 {[%emt 0:00:26]} h6 {[%emt 0:00:04]} 9. Be3 {[%emt 0:00:11] The position is equal.} Qc7 {[%emt 0:10:23]} 10. g5 {[%emt 0:00:44]} hxg5 {[%emt 0:00:04]} 11. Nxg5 {[%emt 0:00:09]} b5 {[%emt 0:12:55]} 12. Qf3 {[%emt 0:00:12]} Bb7 {[%emt 0:08:53]} 13. O-O-O {[%emt 0:00:19]} Nbd7 {[%emt 0:01:30]} 14. h4 $146 {[%emt 0:05:41] [#]} (14. Nd5 $11 {keeps the balance.} Bxd5 15. exd5) (14. Kb1 Rc8 15. Bd3 Nc5 16. Bxc5 Qxc5 17. h4 Bd8 18. h5 Rh6 19. Nd5 Bxd5 20. exd5 {½-½ Colotti,C (1935)-Kregelin,J (2335) Champion's League 2021/C8 email}) 14... b4 {[%emt 0:17:17]} (14... Rc8 $1 $17 {And now ...b4 would win.} 15. Bd3 g6) 15. Nd5 $14 {[%emt 0:01:04]} Bxd5 {[%emt 0:00:07] A sharp opening} 16. exd5 {[%emt 0:06:59][%cal Og5e6]} a5 {[%emt 0:04:31]} (16... Rb8 $14) 17. Bb5 $16 {[%emt 0:09:53][%cal Og5e6]} Kf8 {[%emt 0:10:08]} (17... a4 $14) 18. h5 $40 {[%emt 0:05:44][%cal Oh5h6][%mdl 128] White is out for blood.} a4 {[%emt 0:02:32]} 19. h6 {[%emt 0:00:33] Threatening mate with hxg7+.} g6 {[%emt 0:01:43][%csl Oh6] White has a strong passed pawn} 20. Rh4 {[%emt 0:05:24][%cal Oh4c4] Chess con chili. White has more active pieces.} a3 $2 {[%emt 0:02:38]} (20... b3 $16 21. Rc4 (21. Bxa4 $2 Qxc2#) 21... Qa5 22. Rxa4 (22. Bxa4 $2 bxa2 23. b4 a1=Q+ $19) 22... Qxa4 23. Bxa4 bxa2) 21. Rxb4 {[%emt 0:04:36]} (21. b3 $18) 21... axb2+ {[%emt 0:01:12]} 22. Rxb2 {[%emt 0:01:43]} (22. Kxb2 Qa5 23. Rb3 Qxa2+ 24. Kc1 e4 $11 (24... Rxh6 $2 25. Ne6+ Kg8 26. Bxh6 $18)) 22... Nc5 {[%emt 0:10:33]} (22... Rxh6 $2 {is the wrong capture.} 23. Ne6+ fxe6 24. Bxh6+ Kg8 25. Rg1 $18 (25. dxe6 e4 $18)) (22... e4 $142 23. Qf4 (23. Nxe4 Ne5 $18) 23... Ne5) 23. Bc6 {[%emt 0:06:15] This pair of bishops is nice.} Ra3 {[%emt 0:00:43] [#]} 24. h7 $2 {[%emt 0:02:51]} Bd8 $2 {[%emt 0:07:31][%mdl 8192] [#]} (24... Kg7 $16) 25. Ne6+ $1 {[%emt 0:09:21][%mdl 512]} fxe6 {[%emt 0:01:38] White has a decisive advantage.} 26. Bh6+ {[%emt 0:00:07]} Kf7 {[%emt 0:02:54]} 27. Qxa3 {[%emt 0:00:06]} Rxh7 {[%emt 0:02:08]} 28. Be3 {[%emt 0:02:15]} exd5 {[%emt 0:00:39]} 29. Bxd5+ {[%emt 0:06:04]} Nxd5 {[%emt 0:00:06]} 30. Rxd5 {[%emt 0:00:34]} Ne4 {[%emt 0:01:02]} 31. Rb3 {[%emt 0:02:03] Rdb5 is the strong threat. Prevents Nc3.} Ke6 {[%emt 0:01:12]} 32. Rd1 {[%emt 0:01:51]} Qc6 {[%emt 0:00:47] Inhibits Qa4.} 33. Rbd3 {[%emt 0:03:40] Weighted Error Value: White=0.45/Black=0.42  Loses game:     	---       	Black=2      Mistake:       	White=3     	Black=4      OK:         	White=8     	Black=10     Best:        	White=2     	Black=3} 1-0

[Event "Karel Janecek Open 2025"]
[Site "Prague"]
[Date "2025.02.27"]
[Round "1.2"]
[White "Hrbolka, Ladislav"]
[Black "Nyzhnyk, Illya"]
[Result "0-1"]
[Annotator "TA"]
[ECO "E92"]
[WhiteElo "2004"]
[BlackElo "2569"]
[PlyCount "62"]
[EventDate "2025.02.21"]
[EventType "swiss"]
[EventCountry "CZE"]
[SourceTitle "playchess.com"]
[Source "ChessBase"]
[SourceQuality "1"]
[TimeControl "40/5400+30:1800+30"]

{[%evp 19,62,40,51,35,43,36,48,3,2,12,20,0,0,-25,-40,-41,-25,-85,-97,-90,-98,-98,-100,-146,-142,-191,-202,-503,-493,-1886,-497,-487,-494,-480,-472,-504,-487,-469,-478,-594,-549,-722,-723,-1467,-1464]} 1. d4 {[%emt 0:00:17]} Nf6 {[%emt 0:01:06]} 2. c4 {[%emt 0:00:42]} g6 {[%emt 0:00:11]} 3. Nc3 {[%emt 0:00:16]} Bg7 {[%emt 0:00:08]} 4. e4 {[%emt 0:00:18]} d6 {[%emt 0:00:05]} 5. Be2 {[%emt 0:00:15]} O-O {[%emt 0:00:14]} 6. Be3 {[%emt 0:00:24]} c6 {[%emt 0:00:42]} 7. Nf3 {[%emt 0:04:21]} e5 {[%emt 0:05:14]} 8. O-O {[%emt 0:08:35]} Ng4 {[%emt 0:00:05][%cal Bf6g4,Bg4h6,Bh6f7][%mdl 32]} 9. Bg5 {[%emt 0:00:37]} f6 {[%emt 0:00:33]} 10. Bc1 {[%emt 0:01:35]} Qe7 $5 {[%emt 0:01:48][%mdl 4] A promising side line.} 11. h3 {[%emt 0:02:21] E92: King's Indian: Classical: 6 Be2 e5: 7 dxe5, 7 Be3 and Petrosian System without 7...Nbd7.} Nh6 {[%emt 0:00:05]} 12. b4 $146 {[%emt 0:03:39]} (12. Be3 Nd7 13. Qc1 Nf7 14. b4 f5 15. dxe5 dxe5 16. c5 f4 17. Bd2 h5 18. b5 {1-0 Srdanovic,J (2207)-Toth,D (2043) Senta Fantastico GM Mix 02 2025 (2)}) 12... Nf7 {[%emt 0:07:48]} 13. dxe5 {[%emt 0:06:50] White is slightly better.} dxe5 {[%emt 0:01:50]} 14. Rb1 {[%emt 0:03:27]} Be6 {[%emt 0:04:32]} 15. Be3 {[%emt 0:01:53]} Nd7 {[%emt 0:00:52][%cal Bb8d7,Bd7f6,Bf6d5,Bd5f4][%mdl 32] Repels Bc5} 16. Nd2 {[%emt 0:06:40]} f5 {[%emt 0:00:56]} 17. f3 {[%emt 0:06:56]} Rfd8 {[%emt 0:00:11]} 18. Nd5 {[%emt 0:02:57]} cxd5 $17 {[%emt 0:01:38]} 19. cxd5 {[%emt 0:01:10] [#]} Bxd5 {[%emt 0:00:06]} 20. exd5 {[%emt 0:00:12]} Nf6 {[%emt 0:00:15]} 21. Qb3 {[%emt 0:03:33]} (21. Bc5 $142 Qd7 22. Qb3) 21... Nxd5 {[%emt 0:01:10]} 22. Bc5 {[%emt 0:03:08]} (22. Nc4 $17 {is a better defense.}) 22... Qg5 $19 {[%emt 0:00:12][%cal Od5f4]} 23. Bc4 $2 {[%emt 0:00:52] [#]} (23. Rf2 {is more resistant.} Nf4 (23... Qxd2 24. Bc4 $15) 24. Be3) 23... Nf4 $1 {[%emt 0:00:42][%csl Gf4][%cal Rg5g2] Black is clearly winning.} 24. Bxf7+ {[%emt 0:03:28]} (24. Rf2 Nxh3+) 24... Kh8 {[%emt 0:00:05][%csl Gf4][%cal Rg5g2]} 25. Rf2 {[%emt 0:02:01]} Nxh3+ {[%emt 0:00:05]} 26. Kf1 {[%emt 0:00:02]} Nxf2 {[%emt 0:00:07]} 27. Bxf2 {[%emt 0:00:03]} Rxd2 {[%emt 0:01:14]} 28. Qe3 {[%emt 0:07:17]} Qd8 {[%emt 0:00:06][%cal Oe5e4]} 29. Bb3 {[%emt 0:00:14]} Rc8 {[%emt 0:00:20][%cal Og7h6]} 30. Kg1 {[%emt 0:02:24] [#]} e4 $1 {[%emt 0:00:08] And now ...Rc3 would win.} 31. Kh1 {[%emt 0:01:21]} (31. Qf4 Qd3) 31... Rc3 {[%emt 0:01:18] White got outplayed after the opening.   Weighted Error Value: White=1.11/Black=0.06 (flawless)   Mistake:       	White=4     	---        Inaccurate:     	White=3     	Black=1      OK:         	White=5     	Black=11     Strong:       	---       	Black=1      Brilliant:      	---       	Black=1} 0-1

[Event "Karel Janecek Open 2025"]
[Site "Prague"]
[Date "2025.02.27"]
[Round "1.3"]
[White "Grigoryan, Karen H."]
[Black "Ejsymont, Blanka"]
[Result "1-0"]
[Annotator "TA"]
[ECO "B10"]
[WhiteElo "2554"]
[BlackElo "2003"]
[PlyCount "87"]
[EventDate "2025.02.21"]
[EventType "swiss"]
[EventCountry "CZE"]
[SourceTitle "playchess.com"]
[Source "ChessBase"]
[SourceQuality "1"]
[TimeControl "40/5400+30:1800+30"]

{[%evp 9,87,8,8,12,41,-20,3,9,10,-12,10,-48,-40,-37,41,28,31,15,14,12,0,25,48,52,86,22,100,56,116,114,111,62,99,99,108,105,85,93,135,66,118,101,115,73,84,75,90,99,159,125,145,194,188,170,239,252,253,219,388,439,403,372,642,631,1055,1007,2073,1912,2552,2425,29986,3302,29987,1794,2773,2740,2818,2649,5764,5622]} 1. e4 {[%emt 0:01:05][%cal Be2e4,Be4e5][%mdl 32]} c6 {[%emt 0:00:04]} 2. Ne2 {[%emt 0:00:59]} d5 {[%emt 0:00:42]} 3. e5 {[%emt 0:00:06]} Bg4 {[%emt 0:01:12]} 4. h3 {[%emt 0:01:23]} Bh5 {[%emt 0:03:08]} 5. d4 {[%emt 0:01:33]} e6 {[%emt 0:01:14]} 6. c3 {[%emt 0:00:34] B10: Caro-Kann: 2 d3 and 2 c4.} Nd7 {[%emt 0:01:34]} 7. Be3 $146 {[%emt 0:00:11]} (7. Qb3 $14) (7. Qb3 Qb6 8. Nf4 Bg6 9. h4 Bxb1 10. Rxb1 Qxb3 11. axb3 c5 12. Bb5 cxd4 13. cxd4 {½-½ Barboza,M (1852)-Martinez Fernandez,F (1885) Montevideo Nazzari Memorial 2019 (6)}) 7... Ne7 {[%emt 0:01:46]} 8. g4 {[%emt 0:00:48] The position is equal.} Bg6 {[%emt 0:00:08]} 9. Ng3 {[%emt 0:00:42]} c5 {[%emt 0:07:23]} 10. Nd2 {[%emt 0:01:33]} (10. f4 $11) 10... Nc6 $15 {[%emt 0:03:17] ...cxd4 would now be deadly.} 11. f4 {[%emt 0:00:39][%cal Bf2f4,Bf4f5][%mdl 32]} h6 {[%emt 0:02:00]} (11... f6 $15) 12. f5 $14 {[%emt 0:01:01]} Bh7 {[%emt 0:01:22]} 13. Nf3 {[%emt 0:02:16]} Qb6 {[%emt 0:04:34]} 14. Qe2 {[%emt 0:00:22]} cxd4 {[%emt 0:03:03]} 15. cxd4 {[%emt 0:00:10]} Bb4+ {[%emt 0:03:10]} 16. Kf2 {[%emt 0:00:15]} O-O-O {[%emt 0:03:21]} 17. Bg2 {[%emt 0:00:39]} (17. Kg2 $16) 17... exf5 {[%emt 0:07:32]} (17... Kb8 $11) 18. gxf5 {[%emt 0:00:16]} g6 {[%emt 0:01:14]} (18... Kb8 $14) 19. f6 $16 {[%emt 0:04:37]} (19. Bxh6 Ndxe5 (19... gxf5 20. Rhd1 $15) (19... Nxd4 20. Nxd4 Qxd4+ 21. Be3 $17) 20. Rhc1 Rhe8 21. Nxe5 Qxd4+ (21... gxf5 $2 22. Kf1 $18) 22. Kf1 Rxe5 $19) 19... g5 {[%emt 0:03:25]} 20. Rhc1 {[%emt 0:00:43]} ({White should try} 20. a3 $16 Bf8 21. a4) 20... Kb8 {[%emt 0:01:17] [#]} 21. a3 $1 {[%emt 0:00:21]} Bf8 {[%emt 0:00:55][%csl Of8] Black has a bad bishop} 22. b4 {[%emt 0:00:29]} a6 {[%emt 0:01:52]} 23. Kg1 {[%emt 0:00:46]} Qb5 {[%emt 0:04:35]} 24. Qf2 {[%emt 0:03:45]} (24. Qxb5 $16 axb5 25. Kf2) 24... Bd3 {[%emt 0:05:46]} (24... Nb6 $1 $14 25. Bf1 Qa4) 25. Rc3 {[%emt 0:00:37]} Nb6 {[%emt 0:05:02]} 26. Rd1 {[%emt 0:03:26]} Bc4 {[%emt 0:01:38]} 27. Nf5 $36 {[%emt 0:02:34][%mdl 2048] White is on the roll.} Rg8 {[%emt 0:04:00]} 28. Nd2 {[%emt 0:02:02] White is much more active.} g4 {[%emt 0:04:18]} ({Better is} 28... Na4 29. Rc2 (29. Rxc4 dxc4 30. Qg3 c3 $16) 29... Bd3) 29. h4 {[%emt 0:00:19]} (29. Nxh6 $6 Na4 30. Nxg8 Nxc3 $14) (29. Bxh6 Bd3 $16) 29... Na4 {[%emt 0:02:37] [#]} 30. Rxc4 {[%emt 0:00:44][%mdl 512]} dxc4 {[%emt 0:00:37]} 31. Ne4 {[%emt 0:00:58]} (31. Bxh6 Bxh6 32. Bxc6 (32. Nxh6 Nxd4 33. Nxg8 Nb2 $17) 32... Qxc6 $15) 31... a5 {[%emt 0:01:04]} ({Don't go for} 31... Nxe5 $2 32. Bf4 $18 (32. Bxh6 $2 {perishes.} Nf3+ 33. Bxf3 gxf3+ 34. Ng7 Ka8 $19)) (31... g3 $142 32. Qf4 (32. Nexg3 Nb6 $16) 32... Ka8) 32. Qf4 $18 {[%emt 0:01:54]} (32. Nxh6 g3 33. Qf4 (33. Nxg3 Bxh6 34. Bxh6 Nc3 $16) 33... Bxh6 34. Qxh6 c3 $14 (34... Nxe5 $2 35. Bf4 $18)) 32... Ka8 {[%emt 0:02:01][%cal Oc6e5]} 33. Qf1 {[%emt 0:00:55]} (33. Nxh6 Bxh6 34. Qxh6 Nxe5 $17) 33... axb4 $2 {[%emt 0:02:12]} (33... Rh8 34. Rb1 axb4 35. axb4 g3) 34. axb4 {[%emt 0:00:06]} (34. Bxh6 Nb2 (34... bxa3 35. Bxf8 Rgxf8 36. Ned6 $15) 35. Bxf8 Nxe5 (35... Nxd1 36. Ned6 $11) 36. Bxb4 Nf3+ 37. Bxf3 gxf3+ 38. Nfg3 f2+ 39. Kxf2 Rg4 $11) 34... Bxb4 {[%emt 0:00:42]} 35. Ra1 {[%emt 0:00:09][%cal Of1d1]} ({Less strong is} 35. Nxh6 Rgf8 36. Nf5 (36. Nxg4 Nc3 $16) 36... Nc3 $18) 35... Na5 $2 {[%emt 0:01:30]} (35... Kb8 36. Qf4 (36. Bxh6 Nxd4 37. Nxd4 Rxd4 $11) 36... Ba5) 36. Rb1 {[%emt 0:02:17]} Nc6 {[%emt 0:01:50]} 37. Ned6 {[%emt 0:00:26]} Qa5 {[%emt 0:00:50] [#]} 38. Nxb7 $1 {[%emt 0:00:46][%mdl 512]} Kxb7 {[%emt 0:01:12][%cal Ba8b7,Bb7b8,Bb8a7][%mdl 32]} (38... Qa6 39. Nxd8) 39. Qxc4 {[%emt 0:00:08]} Rc8 {[%emt 0:01:45]} 40. Rxb4+ {[%emt 0:00:29]} Nb6 {[%emt 0:00:29]} 41. Qxf7+ {[%emt 0:30:58]} (41. Nd6+ $142 Kb8 42. Bxc6 Rc7 43. d5 (43. Nxf7 Rxc6 44. Qxc6 Qxb4 $18) (43. Bxh6 g3 $18) 43... Rb7 44. Nxb7 Qa1+ 45. Qc1 Qxc1+ 46. Bxc1) 41... Kb8 {[%emt 0:33:02] White is clearly winning.} 42. Rb1 {[%emt 0:00:08][%cal Og2c6] aiming for Bxc6!.} Rgd8 {[%emt 0:01:15]} 43. Qb3 {[%emt 0:00:39]} Ka7 {[%emt 0:01:25]} 44. d5 {[%emt 0:00:10] Weighted Error Value: White=0.38/Black=1.22  Mistake:       	White=5     	Black=8      Inaccurate:     	White=2     	Black=5      OK:         	White=13    	Black=9      Best:        	White=2     	Black=2      Strong:       	White=1     	---} 1-0

[Event "Karel Janecek Open 2025"]
[Site "Prague"]
[Date "2025.02.27"]
[Round "1.4"]
[White "Dzoba, Demian"]
[Black "Sasikiran, Krishnan"]
[Result "0-1"]
[Annotator "TA"]
[ECO "E19"]
[WhiteElo "2002"]
[BlackElo "2548"]
[PlyCount "76"]
[EventDate "2025.02.21"]
[EventType "swiss"]
[EventCountry "CZE"]
[SourceTitle "playchess.com"]
[Source "ChessBase"]
[SourceQuality "1"]
[TimeControl "40/5400+30:1800+30"]

{[%evp 22,76,29,29,41,20,33,-15,-8,-13,3,-13,-20,-39,0,-42,-9,-41,-25,-56,-41,-89,-31,-53,-18,-16,0,-98,-79,-104,-80,-59,-71,-72,-92,-86,-85,-97,-101,-100,-95,-439,-432,-1993,-1972,-1848,-1793,-1591,-1473,-29976,-29972,-4802,-4798,-29988,-29989,-29989,-29990]} 1. d4 {[%emt 0:00:16]} Nf6 {[%emt 0:00:26]} 2. c4 {[%emt 0:00:37]} e6 {[%emt 0:00:31]} 3. Nf3 {[%emt 0:00:32]} b6 {[%emt 0:00:43]} 4. g3 {[%emt 0:00:53]} Ba6 {[%emt 0:00:48]} 5. Qa4 {[%emt 0:00:38]} Bb7 {[%emt 0:04:02]} 6. Bg2 {[%emt 0:01:07]} Be7 {[%emt 0:00:45]} 7. Nc3 {[%emt 0:01:23]} O-O {[%emt 0:01:21]} 8. O-O {[%emt 0:00:53]} Ne4 {[%emt 0:02:56]} 9. Qc2 {[%emt 0:03:32]} Nxc3 {[%emt 0:05:20]} 10. Qxc3 {[%emt 0:01:43]} d6 {[%emt 0:02:58]} 11. b3 {[%emt 0:02:36]} Nd7 {[%emt 0:05:15]} 12. Bb2 {[%emt 0:01:50]} a5 {[%emt 0:04:13] E19: Queen's Indian: Old Main Line with 7...Ne4 8 Qc2 Nxc3 8 Qxc3.} 13. Qc2 {[%emt 0:04:55][%cal Of3g5]} f5 {[%emt 0:06:37]} 14. Nd2 $146 {[%emt 0:02:05]} (14. Ne1 $14 Bxg2 15. Nxg2 (15. Kxg2 c5 $11)) ({Predecessor:} 14. Ne1 Bxg2 15. Nxg2 Bf6 16. Rae1 Qe7 17. e4 fxe4 18. Nf4 g5 19. Ng2 d5 20. cxd5 exd5 21. Qc6 Qd6 22. Qxd6 cxd6 23. Ne3 a4 24. Bc3 Bg7 25. Nxd5 {½-½ Costa,F (2168)-Valo,T (2126) W-ch WS/M/847 email 2022}) 14... Bxg2 $11 {[%emt 0:07:54] The position is equal.} 15. Kxg2 {[%emt 0:00:12]} c5 {[%emt 0:02:28]} 16. e4 {[%emt 0:04:35]} cxd4 {[%emt 0:06:26]} 17. Bxd4 {[%emt 0:03:03]} f4 {[%emt 0:05:49]} 18. f3 {[%emt 0:03:14]} Bf6 {[%emt 0:05:08]} 19. Qc3 {[%emt 0:08:07]} Be5 {[%emt 0:04:29]} 20. Bxe5 {[%emt 0:04:00]} Nxe5 {[%emt 0:02:47]} 21. Rf2 {[%emt 0:03:27]} (21. Rad1 $15) 21... Qf6 {[%emt 0:08:19]} (21... a4 $17) 22. Rd1 $15 {[%emt 0:13:46]} h5 {[%emt 0:04:45]} 23. Nf1 {[%emt 0:03:20]} h4 {[%emt 0:02:51]} 24. gxf4 {[%emt 0:08:54]} (24. Rxd6 $11 Rfd8 25. Rfd2 (25. Rxb6 $2 Rd3 $19) 25... Rxd6 26. Rxd6) 24... Qxf4 $17 {[%emt 0:02:29][%cal Oh4h3] Black attacks} 25. h3 {[%emt 0:05:45][%cal Oc3e3] [#]} Rf6 $1 {[%emt 0:06:36][%cal Bf8f6,Bf6g6,Bg6g3][%mdl 32] Threatens to win with ...Raf8. Black is more active.} 26. Qe3 {[%emt 0:00:49]} Rg6+ {[%emt 0:01:30]} 27. Kh1 {[%emt 0:00:15]} Rf8 {[%emt 0:01:59][%cal Re5f3]} 28. Qxf4 {[%emt 0:01:16]} Rxf4 {[%emt 0:00:05]} 29. Nh2 {[%emt 0:00:18]} (29. Rxd6 Rxf3 (29... Nxf3 30. Rg2 $17) 30. Rdd2 Rxh3+ 31. Nh2 Rgg3 $19) 29... Rg3 $40 {[%emt 0:00:31][%csl LRf3,LRh3][%mdl 128] Black wants a kill.} 30. Rxd6 {[%emt 0:01:36]} Rxh3 {[%emt 0:00:41][%cal Rf4f3]} 31. Rxe6 $2 {[%emt 0:05:44][%mdl 8192] This costs White the game.} (31. Kg2 $17 {is tougher.} Rg3+ 32. Kh1) 31... Rfxf3 $19 {[%emt 0:00:32]} ({Less strong is} 31... Nxf3 32. Rxb6 g5 33. e5 $19) 32. Rxf3 {[%emt 0:04:10]} (32. Kg2 $142 Rxh2+ 33. Kxh2 Ng4+ (33... Rxf2+ $2 34. Kh3 $19) 34. Kg2 Rxf2+ (34... Nxf2 $2 {too greedy.} 35. Kxf3 Nd3 36. Rxb6 $18) 35. Kh3) 32... Nxf3 $17 {[%emt 0:00:07][%csl Gf3][%cal Rh3h2][%mdl 4096] [#] Endgame KRN-KRN} 33. Kg2 {[%emt 0:00:03]} Rg3+ {[%emt 0:00:10]} (33... Rxh2+ 34. Kxf3 Rxa2 35. Kg4 $15) 34. Kf2 {[%emt 0:01:35]} Nxh2 {[%emt 0:00:11]} 35. Rxb6 {[%emt 0:00:17]} Ng4+ {[%emt 0:00:12]} 36. Kf1 {[%emt 0:00:24]} h3 {[%emt 0:00:11] ( -> ...h2)} 37. Rb8+ {[%emt 0:00:18]} Kh7 {[%emt 0:00:19]} 38. Rb5 {[%emt 0:00:06]} Kg6 {[%emt 0:01:00] Weighted Error Value: White=0.95/Black=0.12 (very precise)   Loses game:     	White=1     	---        Mistake:       	White=4     	Black=1      Inaccurate:     	White=3     	Black=3      OK:         	White=5     	Black=3      Best:        	White=4     	Black=5      Strong:       	---       	Black=1} 0-1

[Event "Karel Janecek Open 2025"]
[Site "Prague"]
[Date "2025.02.27"]
[Round "1.5"]
[White "Vetoshko, Volodymyr"]
[Black "Janik, Marek Tobias"]
[Result "1-0"]
[Annotator "TA"]
[ECO "A37"]
[WhiteElo "2529"]
[BlackElo "2002"]
[PlyCount "79"]
[EventDate "2025.02.21"]
[EventType "swiss"]
[EventCountry "CZE"]
[SourceTitle "playchess.com"]
[Source "ChessBase"]
[SourceQuality "1"]
[TimeControl "40/5400+30:1800+30"]

{[%evp 14,79,0,0,0,2,20,24,35,11,33,27,24,13,30,22,34,10,47,42,54,45,52,39,57,41,89,87,74,65,124,87,110,141,174,154,232,244,343,326,339,366,336,339,565,561,536,523,747,743,774,710,798,785,733,684,797,791,825,850,817,783,1049,1029,1302,1252,1884,2051]} 1. c4 {[%emt 0:01:27]} c5 {[%emt 0:00:14]} 2. Nf3 {[%emt 0:00:28]} Nc6 {[%emt 0:00:06]} 3. g3 {[%emt 0:00:24]} g6 {[%emt 0:00:33]} 4. Bg2 {[%emt 0:00:18]} Bg7 {[%emt 0:00:05]} 5. Nc3 {[%emt 0:00:25]} d6 {[%emt 0:00:32]} 6. O-O {[%emt 0:00:41]} e5 {[%emt 0:00:22]} 7. a3 {[%emt 0:02:55]} Nge7 {[%emt 0:01:35]} 8. Rb1 {[%emt 0:03:14]} a5 {[%emt 0:00:10] A37: Symmetrical English vs ...g6: 4 Bg2 Bg7 5 Nf3.} 9. d3 {[%emt 0:00:15]} h6 {[%emt 0:02:24]} 10. Ne1 {[%emt 0:05:39]} Be6 {[%emt 0:02:28] White has an edge.} 11. Nd5 {[%emt 0:06:56]} O-O {[%emt 0:02:45]} 12. Nc2 {[%emt 0:02:51]} Nd4 {[%emt 0:16:26]} 13. Nxd4 {[%emt 0:16:15]} Bxd5 {[%emt 0:04:44]} 14. cxd5 {[%emt 0:01:14]} exd4 {[%emt 0:04:09]} 15. b4 {[%emt 0:08:02]} axb4 $146 {[%emt 0:04:15]} (15... Qb6 16. Bd2 cxb4 17. Qa4 Rfc8 18. axb4 axb4 19. Rxb4 Qa6 20. Qd7 Re8 21. Qxb7 Qxb7 22. Rxb7 {1-0 Carneiro,V (1927)-Dos Santos,T (2034) Bauru op U2200 2010 (5)}) 16. axb4 {[%emt 0:00:02]} b6 {[%emt 0:01:22]} 17. h4 {[%emt 0:06:45]} Nf5 {[%emt 0:11:46]} 18. Be4 {[%emt 0:01:47]} Qd7 {[%emt 0:01:26]} 19. Bf4 {[%emt 0:03:39]} Kh7 {[%emt 0:02:26]} (19... Rfe8 $14) 20. bxc5 {[%emt 0:05:44]} bxc5 {[%emt 0:00:27]} 21. Rb6 {[%emt 0:02:03]} Be5 {[%emt 0:00:46] White leaves nothing to chance now.} (21... Rfe8 $14) 22. Qc1 {[%emt 0:08:28]} Rfe8 {[%emt 0:05:16][%cal Of5h4,Bf8e8,Be8e7,Be7e5][%mdl 32] [#]} 23. h5 $1 {[%emt 0:03:20][%mdl 512]} Re7 {[%emt 0:09:27]} (23... Qd8 24. Rb7) 24. Qd2 {[%emt 0:04:53]} Rae8 {[%emt 0:19:09]} (24... Ree8 $16 25. Kg2 Bg7) 25. Rfb1 $18 {[%emt 0:01:17] Black is weak on the light squares} Qc8 {[%emt 0:08:57]} (25... Rc8 {is a better defense.} 26. Qc1 c4) 26. hxg6+ {[%emt 0:02:49]} fxg6 {[%emt 0:00:09]} 27. Bxe5 {[%emt 0:01:09]} Rxe5 {[%emt 0:00:31]} 28. Qf4 {[%emt 0:00:21] g4 is the strong threat.} Qd8 $2 {[%emt 0:01:17]} (28... Kg7 29. Rb7+ R5e7) 29. Rb7+ {[%emt 0:02:23] White is clearly winning.} R8e7 {[%emt 0:00:28][%cal Be8e7,Be7b7,Bb7b1][%mdl 32]} 30. g4 {[%emt 0:01:48]} Ng7 {[%emt 0:00:38]} 31. Qf6 {[%emt 0:01:22]} Rxe4 {[%emt 0:00:05]} 32. dxe4 {[%emt 0:00:16]} Rxb7 {[%emt 0:00:05]} 33. Qxd8 {[%emt 0:00:04]} Rxb1+ {[%emt 0:00:06][%mdl 4096] Endgame KQ-KRN} 34. Kg2 {[%emt 0:00:13]} c4 {[%emt 0:00:15][%cal Bc5c4,Bc4d3,Bd3d2][%mdl 32]} 35. Qxd6 {[%emt 0:06:55]} d3 {[%emt 0:01:21]} 36. exd3 {[%emt 0:00:05]} cxd3 {[%emt 0:00:04]} 37. Qf4 {[%emt 0:00:08]} Rb2 {[%emt 0:00:11]} 38. Kf3 {[%emt 0:00:54]} g5 {[%emt 0:01:10]} 39. Qe5 {[%emt 0:00:39]} d2 {[%emt 0:00:42]} 40. Ke2 {[%emt 0:00:11] Weighted Error Value: White=0.05 (flawless) /Black=0.97  Mistake:       	---       	Black=5      Inaccurate:     	---       	Black=2      OK:         	White=9     	Black=4      Best:        	White=2     	Black=1      Brilliant:      	White=1     	---} ({Not} 40. Qxb2 d1=Q+ (40... d1=B+ $2 {perishes.} 41. Kg3 $18) 41. Qe2 Qh1+ 42. Ke3 Ne8 $19) 1-0